bitfinex/quotes_ETHUSD_20241216
["timestamp","ask_amount","ask_price","bid_price","bid_amount"]
[1734353643960,2.56852,3893.3,3892.3,0.13366262]
[1734353644142,0.7826,3893.8,3892.3,0.15934347]
[1734353644347,2.56838,3893.5,3892.3,0.15934347]
[1734353644711,2.56826,3893.7,3892.6,0.77068]
[1734353644954,2.56785,3894.4,3892.7,0.02567821]
[1734353645153,3.15011996,3894.4,3892.6,2.47034956]
[1734353645502,3.15011996,3894.4,3893.2,0.77055]
[1734353645653,2.47034956,3894.1,3892.3,0.13366262]
[1734353645855,2.56792,3894.3,3893.0,0.77061]
[1734353646166,2.47034956,3894.5,3893.1,0.02568303]
[1734353646498,2.56794,3894.2,3892.6,0.02568105]
[1734353646681,2.59363005,3894.1,3893.0,0.77059]
[1734353647005,0.259363,3894.0,3892.3,0.13366262]
[1734353647302,2.56818,3893.8,3892.6,0.77067]
[1734353647511,0.7924,3894.1,3892.3,0.13366262]
[1734353647652,0.7924,3894.1,3892.5,0.77071]
[1734353647653,2.56805,3894.0,3892.5,0.77071]
[1734353647853,3.26274956,3894.1,3892.3,0.13366262]
[1734353648058,2.56814,3893.9,3892.6,0.77067]
[1734353648311,3.15122896,3893.9,3892.3,0.90440262]
[1734353648454,3.15122896,3893.9,3892.8,0.77064]
[1734353648652,2.56824,3893.8,3892.6,0.77068]
[1734353648898,2.56825,3893.7,3892.6,0.77067]
[1734353649104,3.15121896,3893.9,3892.7,0.77067]
[1734353649319,0.64139685,3893.8,3892.7,0.77067]
[1734353649472,0.64139685,3893.8,3892.3,0.13366262]
[1734353650218,0.64139685,3893.8,3892.7,0.77066]
[1734353651415,0.64139685,3893.8,3892.4,0.02568471]
[1734353651568,0.64139685,3893.8,3892.8,0.77064]
[1734353651767,0.64139685,3893.8,3892.3,0.90439262]
[1734353651768,2.56838,3893.5,3892.3,0.90439262]
[1734353652134,2.56838,3893.5,3892.4,0.77072]
[1734353652626,2.56856,3893.3,3892.3,0.13366262]
[1734353652960,2.79130225,3893.7,3892.3,0.13366262]
[1734353653235,0.34326991,3893.6,3892.6,0.77068]
[1734353653372,2.56813,3893.9,3892.3,0.90439262]
[1734353653777,2.56813,3893.9,3892.7,0.77065]
[1734353654236,2.56813,3893.9,3892.8,0.77065]
[1734353654512,0.58308796,3893.8,3892.8,0.77065]
[1734353654715,2.56773,3894.5,3893.4,0.77053]
[1734353654917,2.56785,3894.4,3892.9,0.02568477]
[1734353655675,2.56787,3894.3,3892.9,0.02568477]
[1734353655872,0.8305,3894.5,3893.2,0.77056]
[1734353656113,2.56794,3894.2,3893.2,0.77056]
[1734353656623,2.89788496,3894.4,3893.3,0.77055]
[1734353657885,0.33008496,3894.4,3893.3,0.77055]
[1734353658087,2.56787,3894.3,3893.3,0.77055]
[1734353659028,2.56787,3894.3,3893.3,0.77054]
[1734353659234,0.2897955,3894.2,3893.3,0.77054]
[1734353660132,0.2897955,3894.2,3893.4,0.77053]
[1734353661311,0.33008496,3894.4,3893.7,0.77046]
[1734353661515,0.33008496,3894.4,3892.4,2.47034956]
[1734353661516,2.47034956,3894.2,3893.1,0.77058]
[1734353661805,5.03826956,3894.2,3893.2,0.77057]
[1734353662649,5.03826956,3894.2,3893.3,0.77055]
[1734353662650,2.47034956,3894.2,3893.3,0.77055]
[1734353662853,0.50382696,3894.1,3893.3,0.77055]
[1734353663646,0.8305,3894.8,3892.9,0.02568295]
[1734353663647,2.47034956,3894.6,3892.9,0.02568295]
[1734353664177,0.8305,3894.8,3893.0,0.77061]
[1734353664444,0.8305,3894.8,3893.9,0.77042]
[1734353664657,0.8305,3894.8,3893.5,0.02567614]
[1734353664859,0.7577,3895.3,3894.3,0.77035]
[1734353665007,0.63374289,3895.2,3894.3,0.77035]
[1734353665407,0.63374289,3895.2,3893.8,0.77043]
[1734353665622,0.63374289,3895.2,3893.5,0.77049]
[1734353665824,2.56738,3895.1,3893.5,0.77049]
[1734353666012,2.47034956,3895.0,3893.8,0.77043]
[1734353666248,2.87786924,3894.9,3893.9,0.77042]
[1734353666421,0.31040924,3894.9,3894.0,0.77041]
[1734353666758,0.31040924,3894.9,3893.1,0.77059]
[1734353666759,0.31040924,3894.9,3894.2,0.77037]
[1734353666960,2.56727,3895.2,3894.2,0.77037]
[1734353667259,0.7577,3895.3,3894.4,0.77033]
[1734353667456,0.7577,3895.3,3894.2,0.77037]
[1734353668270,0.7577,3895.3,3893.8,0.02567607]
[1734353668408,0.7577,3895.3,3894.4,0.52032]
[1734353668726,3.14684296,3895.2,3894.0,0.7704]
[1734353669361,3.14684296,3895.2,3894.1,0.77038]
[1734353669658,2.56732,3895.1,3894.1,0.77038]
[1734353670029,0.57952296,3895.2,3894.2,0.77037]
[1734353671716,0.57952296,3895.2,3893.3,0.79622677]
[1734353672075,1.05171653,3895.8,3895.0,0.7702]
[1734353672076,0.7665,3895.8,3895.0,0.7702]
[1734353672218,0.7665,3896.1,3895.3,0.77015]
[1734353672929,0.7665,3896.4,3894.4,2.47034956]
[1734353673148,0.7665,3896.4,3895.4,0.77013]
[1734353673674,0.7665,3896.4,3895.6,0.77009]
[1734353674582,0.7665,3896.4,3895.1,0.77019]
[1734353675334,0.7665,3896.4,3895.7,0.77007]
[1734353676309,0.7665,3896.4,3895.5,0.77011]
[1734353676633,0.7665,3896.4,3895.6,0.77009]
[1734353676837,2.47034956,3896.9,3895.2,0.02566698]
[1734353677134,0.02564005,3897.2,3896.2,0.76996]
[1734353677430,2.56582,3897.4,3896.2,0.76996]
[1734353677879,3.27984956,3897.5,3896.2,0.76996]
[1734353678075,3.27984956,3897.5,3896.6,0.76989]
[1734353678292,0.58454896,3897.4,3896.6,0.76989]
[1734353678489,0.8095,3897.5,3896.7,0.76986]
[1734353678923,0.8095,3897.5,3896.9,0.76984]
[1734353679079,3.23904956,3897.9,3895.7,2.49600803]
[1734353679278,3.23904956,3897.9,3896.0,0.77]
[1734353679516,3.23904956,3897.9,3895.4,3.0]
[1734353679517,5.03611956,3897.5,3896.3,0.76995]
[1734353679835,2.47034956,3897.5,3896.6,0.76989]
[1734353680034,2.47034956,3897.5,3896.3,0.76994]
[1734353680766,2.56582,3897.4,3896.2,0.76997]
[1734353680972,0.50361696,3897.3,3896.3,0.76996]
[1734353681138,0.50361696,3897.3,3896.2,0.76996]
[1734353681334,2.47034956,3897.5,3895.6,0.57566106]
[1734353681666,2.47034956,3897.5,3896.4,0.76993]
[1734353681966,2.47034956,3897.5,3896.6,0.7699]
[1734353682150,2.47034956,3897.5,3896.4,0.76993]
[1734353682329,5.03609956,3897.5,3896.4,0.76993]
[1734353682523,5.03609956,3897.5,3895.8,0.02565994]
[1734353682524,0.50360996,3897.4,3895.8,0.02565994]
[1734353682724,2.56582,3897.4,3895.7,0.77006]
[1734353682924,2.56582,3897.4,3896.2,0.76997]
[1734353683238,2.56582,3897.4,3895.8,0.02565995]
[1734353683239,5.03609956,3897.5,3896.4,0.76994]
[1734353684152,5.03609956,3897.5,3896.2,0.76997]
[1734353684337,0.50360996,3897.4,3896.3,0.76995]
[1734353685038,0.50360996,3897.4,3896.4,0.76993]
[1734353685575,5.03609956,3897.5,3896.4,0.76993]
[1734353686256,2.56582,3897.4,3896.2,0.76997]
[1734353686459,2.56567,3897.7,3896.5,0.76992]
[1734353686656,2.88946496,3897.8,3896.6,0.76989]
[1734353687044,3.39231,3898.1,3896.7,0.02566]
[1734353687250,3.39231,3898.1,3896.2,2.47034956]
[1734353687251,3.39231,3898.1,3896.9,0.76984]
[1734353688081,3.39225,3898.1,3897.0,0.76982]
[1734353688293,2.56542,3898.0,3896.8,0.76986]
[1734353688982,2.5655,3897.9,3896.8,0.76986]
[1734353689180,2.56572,3897.6,3895.9,3.0]
[1734353689495,0.8205,3897.5,3895.6,0.1291737]
[1734353689632,0.32908496,3897.4,3895.8,0.77004]
[1734353689826,2.56593,3897.3,3896.1,0.76999]
[1734353690077,2.56593,3897.3,3895.8,0.77004]
[1734353690078,2.47034956,3897.3,3895.6,0.25995233]
[1734353690241,2.56621,3896.8,3895.7,0.77007]
[1734353690947,2.5663,3896.7,3895.5,0.77011]
[1734353691577,2.5663,3896.7,3895.2,0.77017]
[1734353691578,2.5664,3896.6,3895.4,0.77013]
[1734353691737,2.56627,3896.7,3895.4,0.77013]
[1734353692088,2.56646,3896.5,3895.4,0.77013]
[1734353692267,2.56649,3896.4,3895.2,0.77017]
[1734353692584,0.7746,3896.1,3895.0,0.77021]
[1734353692932,0.7746,3896.1,3895.2,0.77017]
[1734353693343,0.7746,3896.1,3895.0,0.77021]
[1734353693678,0.7746,3896.1,3895.0,0.79587826]
[1734353693861,0.7746,3896.1,3895.2,0.77017]
[1734353695135,2.47034956,3896.5,3895.6,0.77009]
[1734353695482,2.56637,3896.6,3894.7,0.77026]
[1734353695639,0.8024,3896.8,3894.8,1.1399056]
[1734353695835,2.56652,3896.4,3894.8,1.1399056]
[1734353696037,5.56589,3897.3,3895.7,0.77006]
[1734353696038,2.47034956,3897.3,3895.7,0.77006]
[1734353696270,0.8024,3896.7,3895.7,0.77006]
[1734353696580,0.8024,3896.7,3895.3,0.02566404]
[1734353697269,0.8024,3897.0,3895.9,0.77002]
[1734353697474,3.69575496,3897.0,3895.9,0.77002]
[1734353697838,0.8024,3897.0,3896.0,0.02566406]
[1734353698077,0.7973,3897.3,3896.3,0.76995]
[1734353698544,3.26764956,3897.3,3895.2,0.77017]
[1734353698759,3.26764956,3897.3,3895.1,3.02566223]
[1734353698760,2.56606,3897.1,3895.9,0.77003]
[1734353698964,3.85355352,3897.3,3895.9,0.77003]
[1734353699146,2.56614,3896.9,3895.9,0.77003]
[1734353700351,2.56603,3897.1,3895.9,0.77002]
[1734353700594,1.38320396,3897.3,3896.3,0.76995]
[1734353700894,1.38320396,3897.3,3895.8,0.77004]
[1734353701042,0.7973,3897.3,3896.3,0.76996]
[1734353701484,0.7973,3897.3,3895.9,0.02566239]
[1734353702095,0.8087,3897.6,3895.9,0.02566239]
[1734353702279,0.8087,3897.6,3896.7,0.76988]
[1734353702798,0.8087,3897.6,3896.0,0.32660619]
[1734353703289,2.56536,3898.1,3896.9,0.76982]
[1734353703837,2.56548,3897.9,3896.9,0.76982]
[1734353704179,0.766,3897.7,3896.0,0.32660619]
[1734353704488,2.56607,3897.1,3896.0,1.09661619]
[1734353704789,2.56607,3897.1,3896.0,0.77001]
[1734353705082,2.56614,3896.9,3895.5,0.77011]
[1734353705282,0.766,3897.5,3896.0,0.77001]
[1734353705748,2.56599,3897.2,3896.1,0.76998]
[1734353705913,0.333199,3897.2,3896.2,0.02566279]
[1734353706207,0.766,3897.5,3896.6,0.76989]
[1734353706812,3.33174,3897.5,3896.2,0.02566102]
[1734353706958,0.766,3897.5,3896.2,0.02566102]
[1734353707158,0.766,3897.5,3896.8,0.76985]
[1734353707505,0.766,3898.0,3896.9,0.02565537]
[1734353707709,0.766,3898.0,3896.9,0.76983]
[1734353707906,0.766,3898.0,3897.3,0.76975]
[1734353708797,0.8226,3898.4,3897.6,0.7697]
[1734353709109,0.8226,3898.4,3897.5,0.7697]
[1734353709815,2.47034956,3897.6,3896.9,0.02565377]
[1734353710111,0.7626,3896.9,3894.8,1.06206175]
[1734353710317,0.7626,3895.9,3894.5,2.1241235]
[1734353710463,0.7626,3895.9,3894.7,0.46550978]
[1734353710661,2.567,3895.6,3894.7,0.1335375]
[1734353711000,2.567,3895.6,3894.1,4.30279131]
[1734353711001,0.02564005,3895.5,3894.3,0.26694169]
[1734353711203,0.49559826,3896.2,3894.3,0.26694169]
[1734353711204,0.55,3895.6,3894.3,0.26694169]
[1734353711414,2.56739,3895.0,3894.3,0.26694169]
[1734353711707,2.56706,3895.6,3894.2,0.13359898]
[1734353711913,0.7626,3895.7,3894.5,0.7703]
[1734353712610,0.7626,3895.7,3894.2,0.13359898]
[1734353712611,2.56699,3895.6,3894.3,0.77035]
[1734353712959,0.7626,3895.7,3894.2,0.13359898]
[1734353713161,2.56733,3895.1,3894.2,0.13359898]
[1734353713401,2.56739,3895.1,3894.2,0.13359898]
[1734353714125,3.56589556,3895.7,3894.2,0.13359898]
[1734353714404,2.56726,3895.3,3894.2,0.13359898]
[1734353715195,2.56736,3895.1,3894.2,0.13359898]
[1734353715568,3.662526,3895.7,3894.2,0.13359898]
[1734353715795,2.56731,3895.2,3894.2,0.13359898]
[1734353716461,3.32953,3895.7,3894.5,0.77031]
[1734353717537,2.56699,3895.6,3894.5,0.77031]
[1734353717745,0.7626,3895.7,3894.2,0.13359898]
[1734353717946,0.7626,3895.7,3894.5,0.77031]
[1734353717947,2.56701,3895.6,3894.5,0.77031]
[1734353718150,2.56701,3895.6,3894.6,0.28916877]
[1734353718332,0.7626,3895.7,3894.5,0.77031]
[1734353718853,3.32956,3895.7,3894.5,0.77031]
[1734353719626,2.56706,3895.5,3894.3,0.77035]
[1734353719951,0.7626,3895.7,3894.2,0.13359898]
[1734353720114,3.32953,3895.7,3894.5,0.7703]
[1734353722201,3.30254956,3896.1,3894.8,0.77024]
[1734353722435,3.30254956,3896.1,3894.6,0.02567136]
[1734353722436,5.86926956,3896.1,3894.9,0.79589991]
[1734353722944,5.86926956,3896.1,3895.0,0.77021]
[1734353723100,0.8322,3896.1,3895.1,0.77019]
[1734353723305,0.8322,3896.1,3894.5,0.7703]
[1734353723642,0.8322,3896.1,3894.6,0.18323618]
[1734353723643,2.56685,3895.9,3894.6,0.18323618]
[1734353723941,3.30254956,3896.1,3894.5,0.7703]
[1734353724141,2.5671,3895.5,3894.2,0.90395898]
[1734353724449,3.29644956,3895.3,3894.2,0.13359898]
[1734353724742,2.56741,3895.0,3894.2,0.13359898]
[1734353725125,5.86365956,3895.3,3894.2,0.13359898]
[1734353725297,5.86365956,3895.3,3894.2,0.90396898]
[1734353725702,2.56727,3895.2,3894.2,0.13359898]
[1734353725939,2.56733,3895.1,3894.2,0.13359898]
[1734353726143,3.29644956,3895.3,3894.2,0.13359898]
[1734353726351,5.86369956,3895.3,3894.2,0.13359898]
[1734353726642,0.8261,3895.3,3894.3,0.77035]
[1734353728013,5.81568956,3895.7,3894.6,0.77028]
[1734353728905,3.24874956,3895.7,3894.7,0.02567254]
[1734353729243,2.47034956,3895.7,3894.8,0.77025]
[1734353729561,2.5666,3896.3,3895.1,0.77019]
[1734353729772,2.823252,3896.3,3895.1,0.77019]
[1734353730270,2.56662,3896.2,3895.1,0.77019]
[1734353732080,2.56662,3896.2,3894.7,0.77026]
[1734353732247,2.56662,3896.2,3895.0,0.7702]
[1734353733131,0.02564005,3896.1,3894.4,0.13355571]
[1734353733332,2.56687,3895.8,3894.6,0.77029]
[1734353733860,2.56687,3895.8,3894.4,0.13355571]
[1734353733861,2.56716,3895.4,3894.4,0.13355571]
[1734353734163,0.8233,3895.6,3894.4,0.13355571]
[1734353734164,2.56732,3895.2,3894.4,0.13355571]
[1734353734379,3.39034,3895.6,3894.4,0.13355571]
[1734353734667,2.56722,3895.3,3894.4,0.13355571]
[1734353734831,2.56735,3895.1,3894.4,0.13355571]
[1734353735261,0.7823,3894.9,3893.7,0.26685633]
[1734353735435,0.7823,3894.9,3893.7,0.40046678]
[1734353735621,2.47034956,3894.5,3893.7,0.40046678]
[1734353735822,2.47034956,3894.5,3893.7,0.26685633]
[1734353735823,2.55793,3894.2,3893.7,0.26685633]
[1734353736142,2.55793,3894.2,3893.2,0.77057]
[1734353737166,2.56803,3894.1,3893.1,0.13363482]
[1734353737352,2.568,3894.1,3893.1,0.13363482]
[1734353737720,2.56786,3894.3,3893.1,0.13363482]
[1734353737920,2.56793,3894.2,3893.1,0.90421482]
[1734353738464,2.47034956,3894.5,3893.1,0.29082083]
[1734353738764,2.56812,3893.9,3893.1,0.13363482]
[1734353739132,0.02564005,3893.8,3893.1,0.13363482]
[1734353739350,2.56821,3893.8,3893.0,0.26689125]
[1734353739562,2.56827,3893.7,3893.0,0.26689125]
[1734353740291,0.49628466,3895.0,3893.8,0.77045]
[1734353740420,0.49628466,3895.0,3893.0,0.26689125]
[1734353740421,0.41153912,3895.0,3893.1,2.47034956]
[1734353740732,2.5672,3895.3,3894.0,0.7704]
[1734353740932,3.59668356,3895.5,3894.0,0.7704]
[1734353740933,2.56728,3895.2,3894.0,0.7704]
[1734353741122,2.56734,3895.1,3893.8,0.77045]
[1734353742036,3.0,3895.4,3893.3,0.79621786]
[1734353742238,2.56741,3895.0,3893.6,0.77049]
[1734353743136,0.02564005,3894.9,3893.4,0.32665674]
[1734353743388,2.5677,3894.6,3893.2,0.77057]
[1734353743539,2.56773,3894.5,3893.2,0.77057]
[1734353744327,0.02564005,3894.6,3893.0,0.26689125]
[1734353744529,2.56765,3894.6,3893.3,0.77055]
[1734353744958,2.56765,3894.6,3893.4,0.02567919]
[1734353745119,2.56765,3894.6,3893.3,0.77055]
[1734353745777,2.56765,3894.6,3893.1,0.77059]
[1734353745929,2.56765,3894.6,3893.2,0.77056]
[1734353746469,0.7686,3895.0,3893.0,0.26689125]
[1734353746680,2.89136496,3894.9,3893.0,0.26689125]
[1734353746831,2.56774,3894.5,3893.2,0.77057]
[1734353747583,2.56761,3894.7,3893.4,0.77053]
[1734353747773,0.32389496,3894.9,3893.4,0.77053]
[1734353747930,2.56768,3894.6,3893.4,0.77053]
[1734353748278,2.56772,3894.5,3893.2,0.77057]
[1734353748783,0.7686,3895.0,3893.3,0.02568039]
[1734353748929,2.56747,3894.9,3893.3,0.79622039]
[1734353749128,2.56747,3894.9,3893.0,2.73724081]
[1734353749129,2.56747,3894.9,3893.5,0.7705]
[1734353749974,2.56747,3894.9,3893.2,0.77057]
[1734353750180,2.56754,3894.8,3893.5,0.7705]
[1734353750342,3.7719,3895.4,3893.3,0.35334889]
[1734353750674,2.56755,3894.8,3893.3,0.35334889]
[1734353751584,2.56737,3895.1,3893.3,0.35334889]
[1734353751732,2.47034956,3894.7,3893.3,0.35334889]
[1734353751931,2.47034956,3894.7,3893.1,0.26686289]
[1734353751932,2.56801,3894.1,3893.1,0.26686289]
[1734353752737,0.7719,3894.3,3893.1,0.26686289]
[1734353752963,2.56793,3894.2,3893.2,0.02568233]
[1734353753238,2.56793,3894.2,3893.1,0.26686289]
[1734353753474,0.24703496,3894.6,3893.1,0.26686289]
[1734353753673,2.56787,3894.3,3893.1,0.26686289]
[1734353753878,0.24703496,3894.6,3893.1,0.26686289]
[1734353753879,2.81470496,3894.6,3893.1,0.26686289]
[1734353754092,2.56793,3894.2,3893.1,0.26686289]
[1734353754234,0.60983545,3894.5,3893.1,0.26686289]
[1734353755288,2.56838,3893.5,3893.1,0.26686289]
[1734353755443,2.56838,3893.5,3892.8,0.400754]
[1734353755444,2.56843,3893.5,3892.8,0.400754]
[1734353755648,2.56845,3893.4,3892.8,0.400754]
[1734353756484,2.56839,3893.5,3892.8,0.400754]
[1734353757683,0.55,3894.1,3892.8,0.400754]
[1734353757885,2.56827,3893.7,3892.8,0.400754]
[1734353758289,0.64016196,3894.0,3892.8,0.400754]
[1734353758473,2.56831,3893.6,3892.8,0.400754]
[1734353759197,2.56818,3893.8,3892.8,0.400754]
[1734353759494,2.56826,3893.7,3892.8,0.400754]
[1734353759858,3.38126,3894.2,3892.8,0.400754]
[1734353760076,0.338126,3894.1,3892.8,0.400754]
[1734353760275,2.56796,3894.2,3892.9,0.02568475]
[1734353760475,2.56796,3894.2,3892.8,0.42643645]
[1734353760681,2.56796,3894.2,3892.9,0.51375]
[1734353760905,2.56796,3894.2,3893.0,0.02568237]
[1734353761053,2.56796,3894.2,3893.1,0.51372]
[1734353761595,0.8076,3894.9,3893.2,0.02568239]
[1734353761793,2.47034956,3895.1,3893.8,0.51363]
[1734353761794,2.56737,3895.1,3893.8,0.51363]
[1734353761995,2.56749,3894.9,3893.6,0.51366]
[1734353762829,0.7683,3895.2,3893.4,2.47034956]
[1734353762960,0.339034,3895.5,3893.5,0.29767341]
[1734353763160,2.83502361,3895.5,3893.5,0.27199528]
[1734353763671,2.56744,3895.0,3893.7,0.51364]
[1734353764528,2.56744,3895.0,3893.5,0.27199528]
[1734353764663,0.7639,3895.8,3893.8,2.49602671]
[1734353764861,2.56702,3895.6,3894.3,0.51355]
[1734353765388,1.34399596,3895.8,3894.3,0.51355]
[1734353765557,1.34399596,3895.8,3893.9,0.87039744]
[1734353765757,2.567,3895.6,3894.0,0.02567408]
[1734353765976,2.567,3895.6,3894.2,0.51357]
[1734353766405,0.7639,3895.8,3893.9,1.94214516]
[1734353766707,2.56726,3895.2,3894.0,1.81118973]
[1734353766872,2.56741,3895.0,3893.9,0.35677744]
[1734353767075,2.56741,3895.0,3894.0,1.29766461]
[1734353767277,2.56741,3895.0,3893.9,0.87039744]
[1734353767476,2.56741,3895.0,3893.9,0.51362]
[1734353771567,2.5671,3895.5,3893.7,1.07174772]
[1734353771767,2.56726,3895.2,3894.0,0.5136]
[1734353772085,2.5671,3895.5,3894.0,0.5136]
[1734353772409,2.56746,3894.9,3893.8,0.51363]
[1734353772570,2.56742,3895.0,3893.9,0.56793693]
[1734353772771,2.56742,3895.0,3893.9,1.08155693]
[1734353772988,2.56742,3895.0,3894.0,0.21533047]
[1734353774078,2.56747,3894.9,3894.0,0.21533047]
[1734353774282,0.35576745,3895.6,3893.6,1.07174772]
[1734353774283,2.56765,3894.7,3893.6,1.07174772]
[1734353774477,2.56765,3894.7,3893.6,0.51366]
[1734353774720,2.56765,3894.7,3893.7,0.43277526]
[1734353774917,3.25914956,3895.5,3893.7,0.43277526]
[1734353775100,2.56727,3895.2,3893.8,4.85479095]
[1734353775270,2.56733,3895.1,3894.0,0.5136]
[1734353775472,2.56747,3894.9,3894.1,0.5379939]
[1734353775671,2.56747,3894.9,3893.8,1.07174772]
[1734353775884,0.37115175,3895.4,3893.7,1.50452298]
[1734353776085,0.37115175,3895.4,3893.8,2.37050102]
[1734353776086,2.5673,3895.2,3893.8,2.37050102]
[1734353776286,0.7888,3895.5,3893.8,2.37050102]
[1734353776287,2.56713,3895.5,3894.3,0.51356]
[1734353776490,2.5672,3895.3,3894.0,1.09500631]
[1734353776670,2.5672,3895.3,3894.1,1.98946269]
[1734353776876,2.56734,3895.1,3894.2,1.29897006]
[1734353777106,0.7888,3895.8,3894.1,0.69049263]
[1734353777107,2.47034956,3895.5,3894.1,0.69049263]
[1734353777313,2.56747,3894.9,3893.8,1.58537772]
[1734353777489,2.56747,3894.9,3893.9,1.29948064]
[1734353777822,2.56747,3894.9,3894.0,1.29948064]
[1734353777991,2.56747,3894.9,3893.8,1.07174772]
[1734353778315,2.56747,3894.9,3893.7,0.43277526]
[1734353778316,2.56726,3895.2,3894.0,0.5136]
[1734353778632,0.57564005,3895.7,3893.7,1.07174772]
[1734353778633,2.56771,3894.6,3893.7,1.07174772]
[1734353778773,2.56771,3894.6,3893.5,1.60762158]
[1734353778774,2.56741,3895.0,3893.5,1.58540772]
[1734353778973,2.59305005,3895.0,3893.6,1.30004596]
[1734353779175,3.15641996,3894.9,3893.4,1.07174772]
[1734353779424,2.56791,3894.3,3893.4,2.37178987]
[1734353779591,0.58891996,3894.9,3893.5,1.31518629]
[1734353779790,3.39317,3895.1,3893.6,1.30044685]
[1734353780079,3.39317,3895.1,3893.7,0.51363]
[1734353780080,2.56756,3894.8,3893.7,0.51363]
[1734353780695,2.56756,3894.8,3893.8,1.3003835]
[1734353780977,2.56756,3894.8,3893.7,0.51363]
[1734353781137,0.8258,3895.1,3893.8,1.30044854]
[1734353781424,2.56751,3894.9,3893.8,0.80220263]
[1734353781626,2.56751,3894.9,3893.8,0.28858263]
[1734353781828,2.5673,3895.2,3893.9,1.32612633]
[1734353781996,2.5673,3895.2,3894.2,0.51358]
[1734353782199,0.7742,3895.4,3894.0,1.07174772]
[1734353782411,2.56744,3895.0,3894.1,0.29679519]
[1734353782616,2.56744,3895.0,3894.1,1.59711227]
[1734353782797,2.56744,3895.0,3894.1,0.29679519]
[1734353782981,2.56744,3895.0,3894.0,0.5136]
[1734353783542,2.56765,3894.6,3893.8,0.28858263]
[1734353783686,2.56765,3894.6,3893.9,1.30053865]
[1734353783891,2.56765,3894.6,3893.8,0.28858263]
[1734353784494,2.56765,3894.6,3893.9,1.30070199]
[1734353784753,2.56765,3894.6,3893.7,1.07174772]
[1734353785029,2.56804,3894.1,3893.4,1.07174772]
[1734353785236,2.56804,3894.1,3893.3,1.07174772]
[1734353785405,2.56804,3894.1,3893.4,1.30082855]
[1734353785735,2.56804,3894.1,3893.2,1.07174772]
[1734353785890,0.8241,3894.3,3893.2,2.37277549]
[1734353786093,2.56804,3894.1,3893.3,1.30102777]
[1734353786388,2.56804,3894.1,3893.2,1.07174772]
[1734353786589,2.56804,3894.1,3893.3,1.30103786]
[1734353786791,2.56804,3894.1,3893.2,1.07174772]
[1734353787104,2.56804,3894.1,3893.2,2.37280359]
[1734353787289,2.56804,3894.1,3893.3,1.30105587]
[1734353787489,2.56804,3894.1,3893.2,1.07174772]
[1734353787713,2.56804,3894.1,3893.1,1.20536559]
[1734353787929,2.56804,3894.1,3893.2,1.3009801]
[1734353788617,3.39197,3894.3,3893.2,1.3009801]
[1734353788788,2.56806,3894.0,3893.1,1.9225714]
[1734353788994,2.56806,3894.0,3893.2,1.30092177]
[1734353789197,2.56806,3894.0,3893.1,0.85082368]
[1734353789787,2.56812,3893.9,3893.1,0.85082368]
[1734353790193,2.56799,3894.1,3893.1,0.85082368]
[1734353790387,0.8128,3894.8,3893.2,0.30940107]
[1734353790671,2.5678,3894.4,3893.2,3.16998499]
[1734353790793,2.5678,3894.4,3893.3,1.30082059]
[1734353790995,2.5678,3894.4,3893.4,1.30070363]
[1734353791294,2.5678,3894.4,3893.5,0.3169868]
[1734353791999,2.5678,3894.4,3893.4,0.51368]
[1734353792628,2.568,3894.1,3893.2,0.28371668]
[1734353792826,2.568,3894.1,3893.3,1.30066553]
[1734353793162,2.568,3894.1,3893.2,0.28371668]
[1734353793866,2.56813,3893.9,3893.2,0.28371668]
[1734353795986,0.8287,3894.5,3893.2,0.28371668]
[1734353796127,0.8287,3894.5,3893.1,0.13361787]
[1734353796325,2.56812,3893.9,3893.2,1.3004366]
[1734353796534,2.56812,3893.9,3893.1,0.13361787]
[1734353796827,2.5682,3893.8,3893.0,0.40086539]
[1734353797064,2.5682,3893.8,3893.1,1.30042858]
[1734353797370,2.56832,3893.6,3893.0,0.40086539]
[1734353797871,5.03819956,3894.3,3893.0,0.40086539]
[1734353798037,0.7677,3893.8,3893.0,0.40086539]
[1734353798442,2.56853,3893.3,3893.0,0.40086539]
[1734353799151,3.33593,3893.8,3893.0,0.40086539]
[1734353799152,2.56849,3893.4,3893.0,0.40086539]
[1734353799528,1.05924663,3894.3,3893.0,0.40086539]
[1734353799735,3.0,3894.6,3893.0,0.40086539]
[1734353799736,2.56784,3894.4,3893.2,0.51371]
[1734353799940,2.56782,3894.4,3893.2,0.51371]
[1734353800171,0.7708,3894.6,3893.2,0.51371]
[1734353800172,2.56792,3894.2,3893.2,0.51371]
[1734353800652,2.5678,3894.4,3893.2,0.51371]
[1734353800950,2.56785,3894.3,3893.2,0.51371]
[1734353801265,0.7708,3894.6,3893.3,0.22734446]
[1734353801266,2.56792,3894.2,3893.3,0.22734446]
[1734353802436,0.7708,3894.6,3893.3,0.22734446]
[1734353802633,2.568,3894.1,3893.3,0.22734446]
[1734353803147,3.33849,3894.6,3893.3,0.22734446]
[1734353803352,2.56789,3894.3,3893.3,0.22734446]
[1734353803873,2.56794,3894.2,3893.3,0.22734446]
[1734353804388,2.56833,3893.6,3893.0,0.40086539]
[1734353804969,2.5685,3893.4,3893.0,0.40086539]
[1734353805349,2.5683,3893.7,3893.0,0.40086539]
[1734353806104,2.568,3894.1,3893.0,0.91460539]
[1734353806582,2.56806,3894.0,3893.0,0.40086539]
[1734353806875,2.56795,3894.2,3893.1,0.71235531]
[1734353807080,2.56795,3894.2,3893.1,0.73803885]
[1734353807285,2.56777,3894.5,3893.3,0.51369]
[1734353807747,0.7823,3894.7,3893.3,0.51369]
[1734353807748,2.56785,3894.3,3893.3,0.51369]
[1734353808389,2.56774,3894.5,3893.2,0.02568197]
[1734353808673,2.5676,3894.7,3893.3,1.29972439]
[1734353808975,3.62654663,3895.2,3893.4,1.60810713]
[1734353808976,2.56746,3894.9,3893.4,1.60810713]
[1734353809177,2.56746,3894.9,3893.4,0.82206274]
[1734353809178,2.56771,3894.6,3893.4,0.82206274]
[1734353809789,2.56771,3894.6,3893.5,0.51367]
[1734353809940,0.7673,3895.3,3893.6,2.4960299]
[1734353810136,2.56739,3895.0,3893.9,0.51361]